[Event "Titled Tuesday Blitz April 25 Late 2023"]
[White "Fressinet, Laurent"]
[Black "Shivakumar, Shawnak"]
[WhiteFideId "608742"]
[BlackFideId "30940192"]
[WhiteElo "2633"]
[BlackElo "2089"]
[Result "1-0"]
[Round "07"]
[TimeControl "180+2"]
[Date "2023.04.25"]
[WhiteClock "0:00:58"]
[BlackClock "0:00:25"]

1. d4 {[%clk 0:03:00]}  d5 {[%clk 0:03:00]} 2. Nf3 {[%clk 0:02:59]}  Nf6 {[%clk 0:03:00]} 3. Bg5 {[%clk 0:02:59]}  Ne4 {[%clk 0:02:59]} 4. Bh4 {[%clk 0:02:59]}  h6 {[%clk 0:02:57]} 5. Nbd2 {[%clk 0:02:54]}  c5 {[%clk 0:02:51]} 6. e3 {[%clk 0:02:52]}  g5 {[%clk 0:02:49]} 7. Bg3 {[%clk 0:02:51]}  Bg7 {[%clk 0:02:50]} 8. c3 {[%clk 0:02:48]}  Nxg3 {[%clk 0:02:49]} 9. hxg3 {[%clk 0:02:47]}  Qb6 {[%clk 0:02:50]} 10. Qb3 {[%clk 0:02:44]}  Nd7 {[%clk 0:02:46]} 11. Be2 {[%clk 0:02:38]}  g4 {[%clk 0:02:45]} 12. Nh4 {[%clk 0:02:29]}  Nf6 {[%clk 0:02:42]} 13. Bb5+ {[%clk 0:02:12]}  Kf8 {[%clk 0:02:42]} 14. Be2 {[%clk 0:02:09]}  Bd7 {[%clk 0:02:39]} 15. Qa3 {[%clk 0:02:07]}  Rc8 {[%clk 0:02:32]} 16. O-O {[%clk 0:02:03]}  h5 {[%clk 0:02:26]} 17. Rac1 {[%clk 0:02:00]}  Bh6 {[%clk 0:02:21]} 18. Nb3 {[%clk 0:01:56]}  c4 {[%clk 0:02:17]} 19. Nc5 {[%clk 0:01:56]}  Bc6 {[%clk 0:02:09]} 20. b3 {[%clk 0:01:51]}  cxb3 {[%clk 0:02:05]} 21. axb3 {[%clk 0:01:52]}  Bg5 {[%clk 0:02:02]} 22. c4 {[%clk 0:01:42]}  Bxh4 {[%clk 0:01:56]} 23. gxh4 {[%clk 0:01:43]}  Kg7 {[%clk 0:01:57]} 24. Nd3 {[%clk 0:01:37]}  e6 {[%clk 0:01:43]} 25. Ne5 {[%clk 0:01:34]}  dxc4 {[%clk 0:01:41]} 26. bxc4 {[%clk 0:01:33]}  Be4 {[%clk 0:01:41]} 27. Bd3 {[%clk 0:01:28]}  Rc7 {[%clk 0:01:11]} 28. Rb1 {[%clk 0:01:24]}  Qa6 {[%clk 0:01:10]} 29. Qxa6 {[%clk 0:01:23]}  bxa6 {[%clk 0:01:11]} 30. c5 {[%clk 0:01:20]}  Bxd3 {[%clk 0:01:02]} 31. Nxd3 {[%clk 0:01:21]}  Nd5 {[%clk 0:01:03]} 32. Ra1 {[%clk 0:01:19]}  Rb8 {[%clk 0:01:03]} 33. g3 {[%clk 0:01:12]}  Rb3 {[%clk 0:01:02]} 34. Ne5 {[%clk 0:01:09]}  f6 {[%clk 0:00:49]} 35. Nc4 {[%clk 0:01:09]}  Nb4 {[%clk 0:00:34]} 36. Rfb1 {[%clk 0:01:05]}  Rxb1+ {[%clk 0:00:30]} 37. Rxb1 {[%clk 0:01:06]}  Nc6 {[%clk 0:00:29]} 38. Ra1 {[%clk 0:01:04]}  Nb4 {[%clk 0:00:27]} 39. Nd6 {[%clk 0:00:58]}  e5 {[%clk 0:00:25]} 40. Ne8+ {[%clk 0:00:58]} 1-0


[Site "https://www.chess.com"]

[Event "Titled Tuesday Blitz April 25 Late 2023"]
[White "Ghazarian, Kirk"]
[Black "Barria Santos, Jose Guilherme"]
[WhiteFideId "30908604"]
[BlackFideId "1939300"]
[WhiteElo "2346"]
[BlackElo "2266"]
[Result "1-0"]
[Round "07"]
[TimeControl "180+2"]
[Date "2023.04.25"]
[WhiteClock "0:00:19"]
[BlackClock "0:00:48"]

1. d4 {[%clk 0:03:00]}  Nf6 {[%clk 0:02:55]} 2. Nf3 {[%clk 0:03:00]}  g6 {[%clk 0:02:54]} 3. g3 {[%clk 0:02:59]}  Bg7 {[%clk 0:02:55]} 4. Bg2 {[%clk 0:03:00]}  O-O {[%clk 0:02:55]} 5. b3 {[%clk 0:03:00]}  d6 {[%clk 0:02:52]} 6. Bb2 {[%clk 0:03:01]}  Nc6 {[%clk 0:02:44]} 7. O-O {[%clk 0:03:01]}  e5 {[%clk 0:02:42]} 8. d5 {[%clk 0:02:57]}  Ne7 {[%clk 0:02:41]} 9. c4 {[%clk 0:02:56]}  Ne8 {[%clk 0:02:22]} 10. Nc3 {[%clk 0:02:52]}  f5 {[%clk 0:02:23]} 11. Ng5 {[%clk 0:02:49]}  h6 {[%clk 0:02:17]} 12. Ne6 {[%clk 0:02:49]}  Bxe6 {[%clk 0:02:18]} 13. dxe6 {[%clk 0:02:50]}  c6 {[%clk 0:02:19]} 14. e4 {[%clk 0:02:42]}  Qc8 {[%clk 0:02:16]} 15. exf5 {[%clk 0:02:42]}  gxf5 {[%clk 0:02:12]} 16. f4 {[%clk 0:02:29]}  Qxe6 {[%clk 0:02:03]} 17. fxe5 {[%clk 0:02:29]}  dxe5 {[%clk 0:02:04]} 18. Qe2 {[%clk 0:02:25]}  Rd8 {[%clk 0:01:59]} 19. Kh1 {[%clk 0:02:24]}  Nf6 {[%clk 0:01:54]} 20. Rae1 {[%clk 0:02:23]}  e4 {[%clk 0:01:51]} 21. Nd1 {[%clk 0:02:17]}  Ng4 {[%clk 0:01:46]} 22. Bxg7 {[%clk 0:02:11]}  Kxg7 {[%clk 0:01:46]} 23. Nf2 {[%clk 0:01:56]}  Nxf2+ {[%clk 0:01:41]} 24. Rxf2 {[%clk 0:01:55]}  Ng6 {[%clk 0:01:38]} 25. Ref1 {[%clk 0:01:54]}  Rf6 {[%clk 0:01:35]} 26. Bxe4 {[%clk 0:01:45]}  Re8 {[%clk 0:01:20]} 27. Bd3 {[%clk 0:01:34]}  Qxe2 {[%clk 0:01:21]} 28. Bxe2 {[%clk 0:01:30]}  f4 {[%clk 0:01:12]} 29. Bh5 {[%clk 0:01:28]}  Ref8 {[%clk 0:01:10]} 30. Bxg6 {[%clk 0:01:22]}  Kxg6 {[%clk 0:01:11]} 31. gxf4 {[%clk 0:01:13]}  Kf5 {[%clk 0:01:11]} 32. Re2 {[%clk 0:01:11]}  Re6 {[%clk 0:01:12]} 33. Rxe6 {[%clk 0:01:09]}  Kxe6 {[%clk 0:01:13]} 34. Kg2 {[%clk 0:01:08]}  Rd8 {[%clk 0:01:09]} 35. Kf3 {[%clk 0:01:00]}  Rd3+ {[%clk 0:01:05]} 36. Kg4 {[%clk 0:00:52]}  Rd2 {[%clk 0:01:03]} 37. h4 {[%clk 0:00:51]}  Rxa2 {[%clk 0:00:57]} 38. Kh5 {[%clk 0:00:51]}  Kf6 {[%clk 0:00:56]} 39. Kxh6 {[%clk 0:00:46]}  Rb2 {[%clk 0:00:48]} 40. Rf3 {[%clk 0:00:38]}  b5 {[%clk 0:00:47]} 41. cxb5 {[%clk 0:00:35]}  cxb5 {[%clk 0:00:48]} 42. h5 {[%clk 0:00:32]}  a5 {[%clk 0:00:48]} 43. Rd3 {[%clk 0:00:25]}  a4 {[%clk 0:00:47]} 44. bxa4 {[%clk 0:00:21]}  bxa4 {[%clk 0:00:48]} 45. Rd6+ {[%clk 0:00:19]} 1-0


[Site "https://www.chess.com"]

[Event "Titled Tuesday Blitz April 25 Late 2023"]
[White "Demchenko, Anton"]
[Black "Adla, Diego"]
[WhiteFideId "4160258"]
[BlackFideId "100072"]
[WhiteElo "2545"]
[BlackElo "2377"]
[Result "0-1"]
[Round "07"]
[TimeControl "180+2"]
[Date "2023.04.25"]
[WhiteClock "0:00:01"]
[BlackClock "0:00:15"]

1. e4 {[%clk 0:03:00]}  e5 {[%clk 0:03:00]} 2. Nf3 {[%clk 0:03:00]}  Nc6 {[%clk 0:02:59]} 3. Bc4 {[%clk 0:03:00]}  Nf6 {[%clk 0:02:59]} 4. d3 {[%clk 0:02:59]}  Bc5 {[%clk 0:02:58]} 5. Bg5 {[%clk 0:02:58]}  h6 {[%clk 0:02:57]} 6. Bh4 {[%clk 0:02:58]}  Be7 {[%clk 0:02:56]} 7. Bg3 {[%clk 0:02:58]}  d6 {[%clk 0:02:52]} 8. a4 {[%clk 0:02:58]}  O-O {[%clk 0:02:47]} 9. h3 {[%clk 0:02:57]}  Be6 {[%clk 0:02:43]} 10. Bxe6 {[%clk 0:02:57]}  fxe6 {[%clk 0:02:43]} 11. c3 {[%clk 0:02:57]}  Nh5 {[%clk 0:02:38]} 12. Nbd2 {[%clk 0:02:53]}  Qe8 {[%clk 0:02:32]} 13. O-O {[%clk 0:02:52]}  Qg6 {[%clk 0:02:29]} 14. Kh2 {[%clk 0:02:51]}  a5 {[%clk 0:02:23]} 15. Qb3 {[%clk 0:02:41]}  Rab8 {[%clk 0:02:18]} 16. Rad1 {[%clk 0:02:26]}  Rf7 {[%clk 0:02:14]} 17. d4 {[%clk 0:02:14]}  exd4 {[%clk 0:01:54]} 18. Nxd4 {[%clk 0:01:31]}  Nxd4 {[%clk 0:01:30]} 19. cxd4 {[%clk 0:01:31]}  b6 {[%clk 0:01:31]} 20. Rde1 {[%clk 0:00:58]}  Rbf8 {[%clk 0:01:30]} 21. Nf3 {[%clk 0:00:58]}  Bd8 {[%clk 0:01:27]} 22. Re3 {[%clk 0:00:44]}  Kh8 {[%clk 0:01:21]} 23. Rfe1 {[%clk 0:00:38]}  Kh7 {[%clk 0:01:16]} 24. R1e2 {[%clk 0:00:37]}  Kh8 {[%clk 0:01:16]} 25. Qc4 {[%clk 0:00:34]}  Kh7 {[%clk 0:01:14]} 26. b4 {[%clk 0:00:32]}  axb4 {[%clk 0:01:13]} 27. Qxb4 {[%clk 0:00:33]}  Kh8 {[%clk 0:01:12]} 28. Qc4 {[%clk 0:00:33]}  Kh7 {[%clk 0:01:12]} 29. Qc6 {[%clk 0:00:34]}  Kh8 {[%clk 0:01:12]} 30. Rc3 {[%clk 0:00:32]}  Kh7 {[%clk 0:01:07]} 31. Qb5 {[%clk 0:00:32]}  Nf4 {[%clk 0:00:52]} 32. Bxf4 {[%clk 0:00:30]}  Rxf4 {[%clk 0:00:52]} 33. Qd3 {[%clk 0:00:26]}  Kh8 {[%clk 0:00:46]} 34. Re3 {[%clk 0:00:22]}  Qh5 {[%clk 0:00:42]} 35. e5 {[%clk 0:00:20]}  d5 {[%clk 0:00:29]} 36. Rc6 {[%clk 0:00:21]}  Qf7 {[%clk 0:00:26]} 37. Rc3 {[%clk 0:00:15]}  g5 {[%clk 0:00:25]} 38. Rc2 {[%clk 0:00:04]}  g4 {[%clk 0:00:25]} 39. hxg4 {[%clk 0:00:04]}  Rxg4 {[%clk 0:00:25]} 40. g3 {[%clk 0:00:05]}  Re4 {[%clk 0:00:19]} 41. Ng1 {[%clk 0:00:03]}  Rxe3 {[%clk 0:00:18]} 42. Qxe3 {[%clk 0:00:04]}  Qf5 {[%clk 0:00:17]} 43. Re2 {[%clk 0:00:02]}  Bg5 {[%clk 0:00:16]} 44. Qc3 {[%clk 0:00:01]}  Rf7 {[%clk 0:00:15]} 0-1


[Site "https://www.chess.com"]

[Event "Titled Tuesday Blitz April 25 Late 2023"]
[White "Schnaider, Ilan"]
[Black "Mekhitarian, Krikor Sevag"]
[WhiteFideId "169013"]
[BlackFideId "2107660"]
[WhiteElo "2224"]
[BlackElo "2604"]
[Result "1-0"]
[Round "07"]
[TimeControl "180+2"]
[Date "2023.04.25"]
[WhiteClock "0:00:03"]
[BlackClock "0:00:04"]

1. e4 {[%clk 0:03:00]}  c5 {[%clk 0:02:59]} 2. Nf3 {[%clk 0:03:00]}  e6 {[%clk 0:02:57]} 3. d4 {[%clk 0:03:00]}  cxd4 {[%clk 0:02:58]} 4. Nxd4 {[%clk 0:03:01]}  Bc5 {[%clk 0:02:52]} 5. Nb3 {[%clk 0:02:59]}  Bb6 {[%clk 0:02:52]} 6. Na3 {[%clk 0:02:57]}  Ne7 {[%clk 0:02:46]} 7. Be2 {[%clk 0:02:54]}  O-O {[%clk 0:02:46]} 8. O-O {[%clk 0:02:54]}  f5 {[%clk 0:02:47]} 9. Bd3 {[%clk 0:02:37]}  Nbc6 {[%clk 0:02:42]} 10. exf5 {[%clk 0:02:31]}  Nxf5 {[%clk 0:02:42]} 11. Nc4 {[%clk 0:02:30]}  Bc7 {[%clk 0:02:26]} 12. Ne3 {[%clk 0:02:22]}  Nh4 {[%clk 0:02:01]} 13. Ng4 {[%clk 0:00:51]}  d5 {[%clk 0:01:50]} 14. f4 {[%clk 0:00:38]}  Bb6+ {[%clk 0:01:30]} 15. Kh1 {[%clk 0:00:37]}  Nf5 {[%clk 0:01:28]} 16. Bxf5 {[%clk 0:00:33]}  exf5 {[%clk 0:01:24]} 17. Ne5 {[%clk 0:00:30]}  Nxe5 {[%clk 0:01:25]} 18. fxe5 {[%clk 0:00:31]}  d4 {[%clk 0:01:25]} 19. Bf4 {[%clk 0:00:29]}  Be6 {[%clk 0:01:23]} 20. Rf3 {[%clk 0:00:29]}  Qd5 {[%clk 0:01:21]} 21. Rg3 {[%clk 0:00:27]}  Rf7 {[%clk 0:01:20]} 22. Qh5 {[%clk 0:00:25]}  Rc8 {[%clk 0:01:15]} 23. Rc1 {[%clk 0:00:19]}  Qe4 {[%clk 0:01:15]} 24. Rf1 {[%clk 0:00:14]}  Rxc2 {[%clk 0:01:11]} 25. Nd2 {[%clk 0:00:13]}  Qc6 {[%clk 0:01:00]} 26. Nf3 {[%clk 0:00:12]}  Bd5 {[%clk 0:00:51]} 27. Nh4 {[%clk 0:00:09]}  d3 {[%clk 0:00:41]} 28. Qg5 {[%clk 0:00:08]}  d2 {[%clk 0:00:26]} 29. Bxd2 {[%clk 0:00:08]}  Be4 {[%clk 0:00:14]} 30. Be3 {[%clk 0:00:08]}  Bc7 {[%clk 0:00:13]} 31. Bd4 {[%clk 0:00:07]}  Qe6 {[%clk 0:00:13]} 32. Bc3 {[%clk 0:00:08]}  h6 {[%clk 0:00:12]} 33. Qf4 {[%clk 0:00:07]}  g5 {[%clk 0:00:09]} 34. Qe3 {[%clk 0:00:05]}  Kh7 {[%clk 0:00:08]} 35. Nf3 {[%clk 0:00:05]}  Bd5 {[%clk 0:00:06]} 36. Rh3 {[%clk 0:00:05]}  Kg6 {[%clk 0:00:05]} 37. Rg3 {[%clk 0:00:02]}  f4 {[%clk 0:00:04]} 38. Qd3+ {[%clk 0:00:03]}  Kg7 {[%clk 0:00:05]} 39. Qxc2 {[%clk 0:00:03]}  fxg3 {[%clk 0:00:04]} 40. hxg3 {[%clk 0:00:04]}  Qg4 {[%clk 0:00:04]} 41. e6+ {[%clk 0:00:03]} 1-0


[Site "https://www.chess.com"]

[Event "Titled Tuesday Blitz April 25 Late 2023"]
[White "Martinez Reyes, Pedro Ramon"]
[Black "Rozen, Eytan"]
[WhiteFideId "3901807"]
[BlackFideId "2816750"]
[WhiteElo "2340"]
[BlackElo "2451"]
[Result "0-1"]
[Round "07"]
[TimeControl "180+2"]
[Date "2023.04.25"]
[WhiteClock "0:00:20"]
[BlackClock "0:00:07"]

1. e4 {[%clk 0:03:00]}  c5 {[%clk 0:02:58]} 2. Nf3 {[%clk 0:03:00]}  e6 {[%clk 0:02:58]} 3. d4 {[%clk 0:02:58]}  cxd4 {[%clk 0:02:59]} 4. Nxd4 {[%clk 0:02:58]}  Nf6 {[%clk 0:03:00]} 5. Nc3 {[%clk 0:02:53]}  Nc6 {[%clk 0:03:00]} 6. Ndb5 {[%clk 0:02:48]}  d6 {[%clk 0:03:00]} 7. Bg5 {[%clk 0:02:47]}  Be7 {[%clk 0:02:46]} 8. Bxf6 {[%clk 0:02:41]}  Bxf6 {[%clk 0:02:47]} 9. Nxd6+ {[%clk 0:02:40]}  Ke7 {[%clk 0:02:47]} 10. Nxc8+ {[%clk 0:02:40]}  Rxc8 {[%clk 0:02:47]} 11. Bd3 {[%clk 0:02:40]}  Nb4 {[%clk 0:02:41]} 12. O-O {[%clk 0:02:38]}  Bxc3 {[%clk 0:02:28]} 13. bxc3 {[%clk 0:02:37]}  Rxc3 {[%clk 0:02:25]} 14. Rb1 {[%clk 0:02:37]}  Qd4 {[%clk 0:02:16]} 15. Qh5 {[%clk 0:02:19]}  Rc5 {[%clk 0:01:50]} 16. Qh4+ {[%clk 0:02:03]}  g5 {[%clk 0:01:50]} 17. Qg3 {[%clk 0:02:03]}  b6 {[%clk 0:01:34]} 18. e5 {[%clk 0:02:01]}  h6 {[%clk 0:01:24]} 19. Rfe1 {[%clk 0:01:51]}  Nxd3 {[%clk 0:01:17]} 20. cxd3 {[%clk 0:01:51]}  Rd8 {[%clk 0:01:16]} 21. Re3 {[%clk 0:01:45]}  Rdc8 {[%clk 0:00:51]} 22. Ree1 {[%clk 0:01:38]}  Rc2 {[%clk 0:00:48]} 23. Qf3 {[%clk 0:01:38]}  Qf4 {[%clk 0:00:46]} 24. Qb7+ {[%clk 0:01:20]}  R8c7 {[%clk 0:00:45]} 25. Qa8 {[%clk 0:01:20]}  Qxf2+ {[%clk 0:00:40]} 26. Kh1 {[%clk 0:01:21]}  R7c6 {[%clk 0:00:30]} 27. Rg1 {[%clk 0:01:16]}  Qc5 {[%clk 0:00:19]} 28. Qh8 {[%clk 0:01:14]}  Rc1 {[%clk 0:00:16]} 29. Qf6+ {[%clk 0:01:11]}  Ke8 {[%clk 0:00:15]} 30. Qh8+ {[%clk 0:00:59]}  Ke7 {[%clk 0:00:15]} 31. Rbxc1 {[%clk 0:00:57]}  Qxc1 {[%clk 0:00:14]} 32. Qxh6 {[%clk 0:00:57]}  Qf4 {[%clk 0:00:12]} 33. h3 {[%clk 0:00:34]}  Qxe5 {[%clk 0:00:09]} 34. Qh5 {[%clk 0:00:31]}  Qf4 {[%clk 0:00:07]} 35. Qe2 {[%clk 0:00:26]}  Rc1 {[%clk 0:00:06]} 36. Rd1 {[%clk 0:00:19]}  Rxd1+ {[%clk 0:00:05]} 37. Qxd1 {[%clk 0:00:20]}  Qd4 {[%clk 0:00:04]} 38. Qb3 {[%clk 0:00:19]}  a5 {[%clk 0:00:04]} 39. Qb5 {[%clk 0:00:18]}  Kf6 {[%clk 0:00:04]} 40. a4 {[%clk 0:00:18]}  Qa1+ {[%clk 0:00:04]} 41. Kh2 {[%clk 0:00:18]}  Qe5+ {[%clk 0:00:04]} 42. Qxe5+ {[%clk 0:00:17]}  Kxe5 {[%clk 0:00:05]} 43. Kg3 {[%clk 0:00:18]}  b5 {[%clk 0:00:05]} 44. axb5 {[%clk 0:00:18]}  a4 {[%clk 0:00:06]} 45. b6 {[%clk 0:00:18]}  Kd6 {[%clk 0:00:06]} 46. Kf3 {[%clk 0:00:19]}  a3 {[%clk 0:00:06]} 47. g4 {[%clk 0:00:20]}  a2 {[%clk 0:00:07]} 0-1


[Site "https://www.chess.com"]

[Event "Titled Tuesday Blitz April 25 Late 2023"]
[White "Ehlvest, Jaan"]
[Black "Hambleton, Aman"]
[WhiteFideId "4500016"]
[BlackFideId "2606577"]
[WhiteElo "2442"]
[BlackElo "2511"]
[Result "1/2-1/2"]
[Round "07"]
[TimeControl "180+2"]
[Date "2023.04.25"]
[WhiteClock "0:00:07"]
[BlackClock "0:00:02"]

1. e4 {[%clk 0:02:51]}  b6 {[%clk 0:02:57]} 2. g3 {[%clk 0:02:45]}  Bb7 {[%clk 0:02:54]} 3. Bg2 {[%clk 0:02:45]}  e6 {[%clk 0:02:54]} 4. d3 {[%clk 0:02:36]}  g6 {[%clk 0:02:52]} 5. Nh3 {[%clk 0:02:31]}  Bg7 {[%clk 0:02:52]} 6. O-O {[%clk 0:02:31]}  Ne7 {[%clk 0:02:52]} 7. Nc3 {[%clk 0:02:28]}  d5 {[%clk 0:02:46]} 8. Bd2 {[%clk 0:02:17]}  c5 {[%clk 0:02:45]} 9. exd5 {[%clk 0:02:09]}  Nxd5 {[%clk 0:02:44]} 10. Nf4 {[%clk 0:02:08]}  O-O {[%clk 0:01:38]} 11. Ncxd5 {[%clk 0:02:07]}  exd5 {[%clk 0:01:39]} 12. Rb1 {[%clk 0:02:07]}  Qd7 {[%clk 0:01:28]} 13. b4 {[%clk 0:01:59]}  cxb4 {[%clk 0:01:24]} 14. Bxb4 {[%clk 0:01:58]}  Re8 {[%clk 0:01:25]} 15. Qf3 {[%clk 0:01:56]}  Na6 {[%clk 0:00:04]} 16. Bd2 {[%clk 0:01:53]}  Nc7 {[%clk 0:00:04]} 17. h4 {[%clk 0:01:42]}  h5 {[%clk 0:00:04]} 18. c4 {[%clk 0:01:31]}  Rad8 {[%clk 0:00:03]} 19. Rfe1 {[%clk 0:01:23]}  Ba8 {[%clk 0:00:03]} 20. Rxe8+ {[%clk 0:01:21]}  Qxe8 {[%clk 0:00:04]} 21. Re1 {[%clk 0:01:15]}  Qd7 {[%clk 0:00:03]} 22. cxd5 {[%clk 0:00:48]}  Nxd5 {[%clk 0:00:02]} 23. Nxd5 {[%clk 0:00:47]}  Bxd5 {[%clk 0:00:03]} 24. Qxd5 {[%clk 0:00:44]}  Qxd5 {[%clk 0:00:04]} 25. Bxd5 {[%clk 0:00:43]}  Rxd5 {[%clk 0:00:05]} 26. Re8+ {[%clk 0:00:42]}  Kh7 {[%clk 0:00:05]} 27. Be3 {[%clk 0:00:37]}  Bf6 {[%clk 0:00:02]} 28. Ra8 {[%clk 0:00:32]}  Ra5 {[%clk 0:00:01]} 29. d4 {[%clk 0:00:31]}  Kg7 {[%clk 0:00:01]} 30. d5 {[%clk 0:00:27]}  Rxd5 {[%clk 0:00:01]} 31. Rxa7 {[%clk 0:00:26]}  b5 {[%clk 0:00:01]} 32. Kg2 {[%clk 0:00:24]}  Rf5 {[%clk 0:00:02]} 33. Rb7 {[%clk 0:00:23]}  Kf8 {[%clk 0:00:02]} 34. Kf1 {[%clk 0:00:23]}  Ke8 {[%clk 0:00:02]} 35. Ke2 {[%clk 0:00:23]}  Be7 {[%clk 0:00:02]} 36. Kd3 {[%clk 0:00:20]}  Bd6 {[%clk 0:00:02]} 37. Ke4 {[%clk 0:00:19]}  Re5+ {[%clk 0:00:03]} 38. Kd4 {[%clk 0:00:19]}  Rf5 {[%clk 0:00:04]} 39. f4 {[%clk 0:00:16]}  Bc5+ {[%clk 0:00:03]} 40. Ke4 {[%clk 0:00:16]}  Bxe3 {[%clk 0:00:04]} 41. Kxe3 {[%clk 0:00:17]}  Rc5 {[%clk 0:00:04]} 42. Kd4 {[%clk 0:00:16]}  Rc4+ {[%clk 0:00:04]} 43. Kd5 {[%clk 0:00:16]}  Ra4 {[%clk 0:00:04]} 44. Ke5 {[%clk 0:00:14]}  Rxa2 {[%clk 0:00:03]} 45. Kf6 {[%clk 0:00:14]}  Ra6+ {[%clk 0:00:03]} 46. Kg7 {[%clk 0:00:14]}  Ra3 {[%clk 0:00:02]} 47. Rxb5 {[%clk 0:00:10]}  Rxg3 {[%clk 0:00:02]} 48. Re5+ {[%clk 0:00:09]}  Kd7 {[%clk 0:00:02]} 49. Kxf7 {[%clk 0:00:10]}  Rg4 {[%clk 0:00:03]} 50. Re4 {[%clk 0:00:09]}  Kd6 {[%clk 0:00:02]} 51. Kf6 {[%clk 0:00:08]}  Kd5 {[%clk 0:00:02]} 52. Re5+ {[%clk 0:00:08]}  Kd4 {[%clk 0:00:02]} 53. Rg5 {[%clk 0:00:09]}  Rxf4+ {[%clk 0:00:02]} 54. Kxg6 {[%clk 0:00:08]}  Rxh4 {[%clk 0:00:02]} 55. Rxh5 {[%clk 0:00:08]}  Rg4+ {[%clk 0:00:02]} 56. Rg5 {[%clk 0:00:08]}  Rxg5+ {[%clk 0:00:02]} 57. Kxg5 {[%clk 0:00:07]} 1/2-1/2


[Site "https://www.chess.com"]

[Event "Titled Tuesday Blitz April 25 Late 2023"]
[White "Ladan, Nicholas"]
[Black "Harshavardhan G B"]
[WhiteFideId "30918855"]
[BlackFideId "25059009"]
[WhiteElo "2167"]
[BlackElo "2323"]
[Result "0-1"]
[Round "07"]
[TimeControl "180+2"]
[Date "2023.04.25"]
[WhiteClock "0:00:03"]
[BlackClock "0:00:09"]

1. d4 {[%clk 0:03:00]}  Nf6 {[%clk 0:02:57]} 2. Nf3 {[%clk 0:03:00]}  g6 {[%clk 0:02:56]} 3. Nbd2 {[%clk 0:02:59]}  d5 {[%clk 0:02:54]} 4. e3 {[%clk 0:02:58]}  Bg7 {[%clk 0:02:55]} 5. b4 {[%clk 0:02:58]}  O-O {[%clk 0:02:55]} 6. c4 {[%clk 0:02:57]}  c6 {[%clk 0:02:55]} 7. a4 {[%clk 0:02:57]}  Ne4 {[%clk 0:02:54]} 8. Nxe4 {[%clk 0:02:57]}  dxe4 {[%clk 0:02:53]} 9. Nd2 {[%clk 0:02:58]}  e5 {[%clk 0:02:52]} 10. d5 {[%clk 0:02:58]}  f5 {[%clk 0:02:51]} 11. Qb3 {[%clk 0:02:47]}  Nd7 {[%clk 0:02:49]} 12. dxc6 {[%clk 0:02:43]}  bxc6 {[%clk 0:02:48]} 13. c5+ {[%clk 0:02:43]}  Kh8 {[%clk 0:02:47]} 14. Nc4 {[%clk 0:02:34]}  Qe7 {[%clk 0:02:42]} 15. Nd6 {[%clk 0:02:27]}  Nf6 {[%clk 0:02:40]} 16. Bc4 {[%clk 0:02:24]}  f4 {[%clk 0:02:38]} 17. O-O {[%clk 0:01:51]}  f3 {[%clk 0:02:37]} 18. g3 {[%clk 0:01:51]}  Bh3 {[%clk 0:02:21]} 19. Rd1 {[%clk 0:01:50]}  h5 {[%clk 0:02:03]} 20. Nf7+ {[%clk 0:01:46]}  Rxf7 {[%clk 0:02:02]} 21. Bxf7 {[%clk 0:01:47]}  h4 {[%clk 0:02:02]} 22. Rd6 {[%clk 0:01:28]}  Bf5 {[%clk 0:01:42]} 23. Bb2 {[%clk 0:01:21]}  Rf8 {[%clk 0:01:39]} 24. Be6 {[%clk 0:01:19]}  Nd5 {[%clk 0:01:07]} 25. Bxf5 {[%clk 0:00:47]}  gxf5 {[%clk 0:01:06]} 26. Rxc6 {[%clk 0:00:45]}  hxg3 {[%clk 0:01:03]} 27. hxg3 {[%clk 0:00:37]}  Qf7 {[%clk 0:00:43]} 28. Qc4 {[%clk 0:00:07]}  Qh5 {[%clk 0:00:40]} 29. Rd1 {[%clk 0:00:07]}  Nxe3 {[%clk 0:00:32]} 30. fxe3 {[%clk 0:00:06]}  f2+ {[%clk 0:00:24]} 31. Kxf2 {[%clk 0:00:05]}  Qxd1 {[%clk 0:00:24]} 32. Qe2 {[%clk 0:00:05]}  Qh1 {[%clk 0:00:22]} 33. Qf1 {[%clk 0:00:05]}  Qh5 {[%clk 0:00:21]} 34. Rd6 {[%clk 0:00:02]}  Qf3+ {[%clk 0:00:19]} 35. Kg1 {[%clk 0:00:03]}  Qxe3+ {[%clk 0:00:20]} 36. Qf2 {[%clk 0:00:03]}  Qb3 {[%clk 0:00:17]} 37. Bc1 {[%clk 0:00:02]}  Qxb4 {[%clk 0:00:16]} 38. Bh6 {[%clk 0:00:02]}  Qb1+ {[%clk 0:00:15]} 39. Kh2 {[%clk 0:00:03]}  e3 {[%clk 0:00:12]} 40. Qg2 {[%clk 0:00:02]}  Rb8 {[%clk 0:00:10]} 41. Bxg7+ {[%clk 0:00:02]}  Kxg7 {[%clk 0:00:10]} 42. Rd7+ {[%clk 0:00:03]}  Kf8 {[%clk 0:00:09]} 0-1


[Site "https://www.chess.com"]